[Event "*** Titled Tuesday 3|2 Blitz (Late)"]
[Site "Chess.com"]
[Date "2016.11.01"]
[Round "3"]
[White "GianmarcoVaR"]
[Black "hardingstoptry"]
[Result "0-1"]
[WhiteElo "2411"]
[BlackElo "2584"]
[TimeControl "180+2"]
[EndTime "17:38:42 PDT"]
[Termination "hardingstoptry won by resignation"]

1. d4 {[%clk 0:03:01.9]} 1... Nf6 {[%clk 0:03:02]} 2. c4 {[%clk 0:03:01.4]} 2...
c5 {[%clk 0:03:02.8]} 3. d5 {[%clk 0:03:01.2]} 3... b5 {[%clk 0:03:00.2]} 4.
cxb5 {[%clk 0:03:00.9]} 4... a6 {[%clk 0:03:01.5]} 5. bxa6 {[%clk 0:03:02]} 5...
e6 {[%clk 0:03:00.6]} 6. Nc3 {[%clk 0:03:02.1]} 6... exd5 {[%clk 0:02:59.6]} 7.
Nxd5 {[%clk 0:03:03]} 7... Bxa6 {[%clk 0:03:00]} 8. e3 {[%clk 0:02:43.4]} 8...
Bxf1 {[%clk 0:02:45.5]} 9. Kxf1 {[%clk 0:02:42.8]} 9... g6 {[%clk 0:02:47.4]}
10. Ne2 {[%clk 0:02:40.2]} 10... Bg7 {[%clk 0:02:48.2]} 11. Nec3 {[%clk
0:02:41.3]} 11... O-O {[%clk 0:02:45.7]} 12. Qf3 {[%clk 0:02:34.5]} 12... Nxd5
{[%clk 0:02:29.4]} 13. Nxd5 {[%clk 0:02:33.2]} 13... Na6 {[%clk 0:02:30.2]} 14.
h4 {[%clk 0:02:32]} 14... h5 {[%clk 0:02:19.9]} 15. g3 {[%clk 0:02:31.1]} 15...
Re8 {[%clk 0:02:05.6]} 16. Kg2 {[%clk 0:02:31.9]} 16... Nc7 {[%clk 0:02:01.8]}
17. Rd1 {[%clk 0:02:30.7]} 17... Nxd5 {[%clk 0:01:56.9]} 18. Qxd5 {[%clk
0:02:30.4]} 18... Qb6 {[%clk 0:01:57.8]} 19. Rb1 {[%clk 0:02:24.4]} 19... Ra7
{[%clk 0:01:52.7]} 20. b3 {[%clk 0:02:17.4]} 20... d6 {[%clk 0:01:24.9]} 21. Rd2
{[%clk 0:02:06.8]} 21... Re6 {[%clk 0:01:21.7]} 22. a4 {[%clk 0:02:03.7]} 22...
Rxa4 {[%clk 0:01:12.4]} 23. Bb2 {[%clk 0:02:02.7]} 23... Ra7 {[%clk 0:01:13.5]}
24. Bxg7 {[%clk 0:02:02]} 24... Kxg7 {[%clk 0:01:10.5]} 25. Qc4 {[%clk
0:01:34.9]} 25... Qc6+ {[%clk 0:01:08.1]} 26. Qd5 {[%clk 0:01:34.4]} 26... Qb6
{[%clk 0:01:05.7]} 27. b4 {[%clk 0:01:33.1]} 27... Qb5 {[%clk 0:01:04]} 28. Rdd1
{[%clk 0:01:14.4]} 28... Ra6 {[%clk 0:00:58.7]} 29. bxc5 {[%clk 0:01:05.4]}
29... Qxc5 {[%clk 0:01:00.6]} 30. Qd3 {[%clk 0:00:46.7]} 30... Qc6+ {[%clk
0:00:55.2]} 31. Kg1 {[%clk 0:00:44.2]} 31... Rf6 {[%clk 0:00:55.9]} 32. Qd4
{[%clk 0:00:42.9]} 32... Ra4 {[%clk 0:00:53.7]} 33. Rb4 {[%clk 0:00:40.8]} 33...
Ra2 {[%clk 0:00:51.7]} 34. Rb2 {[%clk 0:00:39]} 34... Ra4 {[%clk 0:00:52.4]} 35.
Qd5 {[%clk 0:00:38.2]} 35... Qc7 {[%clk 0:00:50.4]} 36. Rb7 {[%clk 0:00:32.6]}
36... Qc8 {[%clk 0:00:45.2]} 37. Qb3 {[%clk 0:00:25.1]} 37... Qf5 {[%clk
0:00:41.9]} 38. Qb2 {[%clk 0:00:20.5]} 38... Rxh4 {[%clk 0:00:38]} 39. Rxd6
{[%clk 0:00:19.6]} 39... Rc4 {[%clk 0:00:33.8]} 40. Rbb6 {[%clk 0:00:18.7]}
40... Rc1+ {[%clk 0:00:32.2]} 41. Qxc1 {[%clk 0:00:12.6]} 41... Qxf2+ {[%clk
0:00:33.3]} 42. Kh1 {[%clk 0:00:13.8]} 42... Qf3+ {[%clk 0:00:32.9]} 43. Kh2
{[%clk 0:00:15.2]} 43... Qf2+ {[%clk 0:00:31.7]} 44. Kh3 {[%clk 0:00:15.7]}
44... h4 {[%clk 0:00:29.4]} 45. Kxh4 {[%clk 0:00:07.3]} 45... Qh2+ {[%clk
0:00:27.1]} 0-1

[Event "*** Titled Tuesday 3|2 Blitz (Late)"]
[Site "Chess.com"]
[Date "2016.11.01"]
[Round "3"]
[White "psv98"]
[Black "Evgeny_Levin"]
[Result "0-1"]
[WhiteElo "2623"]
[BlackElo "2719"]
[TimeControl "180+2"]
[EndTime "17:39:06 PDT"]
[Termination "Evgeny_Levin won by resignation"]

1. e4 {[%clk 0:03:01.9]} 1... c5 {[%clk 0:02:59.8]} 2. Nf3 {[%clk 0:03:03]} 2...
d6 {[%clk 0:02:59.7]} 3. Bb5+ {[%clk 0:03:04.4]} 3... Nd7 {[%clk 0:02:55.8]} 4.
O-O {[%clk 0:03:04.4]} 4... Nf6 {[%clk 0:02:54]} 5. Re1 {[%clk 0:03:04]} 5... a6
{[%clk 0:02:53.6]} 6. Bd3 {[%clk 0:03:03.4]} 6... b5 {[%clk 0:02:34.7]} 7. c3
{[%clk 0:03:04.7]} 7... Bb7 {[%clk 0:02:34.3]} 8. a4 {[%clk 0:03:05.1]} 8... c4
{[%clk 0:02:28.8]} 9. Bc2 {[%clk 0:03:03.8]} 9... Nc5 {[%clk 0:02:28.7]} 10.
axb5 {[%clk 0:02:57.8]} 10... axb5 {[%clk 0:02:30.6]} 11. Rxa8 {[%clk
0:02:58.6]} 11... Qxa8 {[%clk 0:02:27.1]} 12. Na3 {[%clk 0:02:50.2]} 12... Bxe4
{[%clk 0:02:17.5]} 13. Nxb5 {[%clk 0:02:42.8]} 13... Bxc2 {[%clk 0:01:54.3]} 14.
Qxc2 {[%clk 0:02:39.6]} 14... Qb8 {[%clk 0:01:52.7]} 15. Na3 {[%clk 0:02:18.2]}
15... d5 {[%clk 0:01:44.4]} 16. d4 {[%clk 0:02:06.1]} 16... cxd3 {[%clk
0:01:40]} 17. Qd1 {[%clk 0:02:07.2]} 17... Nfe4 {[%clk 0:01:16.3]} 18. Ng5
{[%clk 0:01:20.3]} 18... Nxg5 {[%clk 0:01:03.3]} 19. Bxg5 {[%clk 0:01:16.1]}
19... Qxb2 {[%clk 0:00:56.3]} 20. Qg4 {[%clk 0:00:40.6]} 20... e6 {[%clk
0:00:51.5]} 21. Qf4 {[%clk 0:00:11.4]} 21... d2 {[%clk 0:00:41.6]} 22. Qxd2
{[%clk 0:00:05.4]} 22... Qxa3 {[%clk 0:00:39.1]} 23. Qxd5 {[%clk 0:00:06.5]}
23... f6 {[%clk 0:00:33.3]} 24. Qc6+ {[%clk 0:00:05.2]} 24... Kf7 {[%clk
0:00:34.3]} 25. Be3 {[%clk 0:00:05.1]} 25... Qa4 {[%clk 0:00:25]} 26. Qc7+
{[%clk 0:00:03.4]} 26... Qd7 {[%clk 0:00:25.8]} 27. Qb6 {[%clk 0:00:04.1]} 27...
Na4 {[%clk 0:00:22.5]} 28. Qb3 {[%clk 0:00:04]} 28... Be7 {[%clk 0:00:21.2]} 29.
Rd1 {[%clk 0:00:03.3]} 29... Rb8 {[%clk 0:00:13.3]} 30. Qc2 {[%clk 0:00:02.6]}
30... Rb2 {[%clk 0:00:13.5]} 31. Qc1 {[%clk 0:00:02.7]} 31... Qc6 {[%clk
0:00:13]} 32. h4 {[%clk 0:00:03]} 32... Qxc3 {[%clk 0:00:10]} 33. Qxc3 {[%clk
0:00:03]} 33... Nxc3 {[%clk 0:00:11.9]} 34. Re1 {[%clk 0:00:04]} 34... Nd5
{[%clk 0:00:12.2]} 35. Bc1 {[%clk 0:00:04.5]} 35... Rb1 {[%clk 0:00:12.8]} 36.
Kf1 {[%clk 0:00:05.2]} 36... Bb4 {[%clk 0:00:13.4]} 37. Rd1 {[%clk 0:00:06.7]}
37... Ba3 {[%clk 0:00:11.5]} 38. Bxa3 {[%clk 0:00:03.1]} 38... Rxd1+ {[%clk
0:00:11.4]} 39. Ke2 {[%clk 0:00:05]} 39... Ra1 {[%clk 0:00:13.2]} 40. Bc5 {[%clk
0:00:05.6]} 40... Ra2+ {[%clk 0:00:15.1]} 41. Kf3 {[%clk 0:00:06.9]} 41... Ra4
{[%clk 0:00:16]} 42. g3 {[%clk 0:00:07.6]} 42... e5 {[%clk 0:00:17.3]} 43. Kg2
{[%clk 0:00:08.8]} 43... Ke6 {[%clk 0:00:18.5]} 44. Kf3 {[%clk 0:00:09.1]} 44...
f5 {[%clk 0:00:19.6]} 45. Bf8 {[%clk 0:00:10.1]} 45... g6 {[%clk 0:00:20]} 46.
Bh6 {[%clk 0:00:12]} 46... Ra3+ {[%clk 0:00:20.5]} 47. Kg2 {[%clk 0:00:13.5]}
47... e4 {[%clk 0:00:22.3]} 48. Bg5 {[%clk 0:00:14.9]} 48... Ra2 {[%clk
0:00:23.7]} 49. Kf1 {[%clk 0:00:16]} 49... Nc3 {[%clk 0:00:24]} 50. Be3 {[%clk
0:00:16.4]} 50... Kd5 {[%clk 0:00:24.7]} 51. Kg2 {[%clk 0:00:16.8]} 51... Kc4
{[%clk 0:00:25.6]} 52. Kh3 {[%clk 0:00:17.5]} 52... Nd1 {[%clk 0:00:26.7]} 53.
Bb6 {[%clk 0:00:18.3]} 53... Nxf2+ {[%clk 0:00:27.8]} 54. Bxf2 {[%clk
0:00:16.9]} 54... Rxf2 {[%clk 0:00:29.7]} 55. h5 {[%clk 0:00:18.5]} 55... g5
{[%clk 0:00:29.4]} 56. h6 {[%clk 0:00:17.9]} 56... Rf3 {[%clk 0:00:29.9]} 57.
Kg2 {[%clk 0:00:18.3]} 57... g4 {[%clk 0:00:31.2]} 58. Kh2 {[%clk 0:00:19]}
58... e3 {[%clk 0:00:33.1]} 59. Kg2 {[%clk 0:00:20.5]} 59... e2 {[%clk
0:00:33.3]} 60. Kh2 {[%clk 0:00:22]} 60... e1=Q {[%clk 0:00:34.2]} 61. Kg2
{[%clk 0:00:23.9]} 0-1

[Event "*** Titled Tuesday 3|2 Blitz (Late)"]
[Site "Chess.com"]
[Date "2016.11.01"]
[Round "3"]
[White "jcgs1030"]
[Black "hermionegrangermagic"]
[Result "1/2-1/2"]
[WhiteElo "2232"]
[BlackElo "2243"]
[TimeControl "180+2"]
[EndTime "17:39:31 PDT"]
[Termination "Game drawn by stalemate"]

1. e4 {[%clk 0:03:01.9]} 1... c5 {[%clk 0:03:00]} 2. Nf3 {[%clk 0:03:02.3]} 2...
Nc6 {[%clk 0:03:00.3]} 3. d4 {[%clk 0:03:03.1]} 3... cxd4 {[%clk 0:03:02.2]} 4.
Nxd4 {[%clk 0:03:04.1]} 4... e5 {[%clk 0:03:03.8]} 5. Nb5 {[%clk 0:03:04.1]}
5... d6 {[%clk 0:03:04.9]} 6. N1c3 {[%clk 0:03:03]} 6... a6 {[%clk 0:03:05.8]}
7. Na3 {[%clk 0:03:04]} 7... b5 {[%clk 0:03:06.9]} 8. Nd5 {[%clk 0:03:04.4]}
8... Nge7 {[%clk 0:03:08.5]} 9. c4 {[%clk 0:03:05.1]} 9... Nd4 {[%clk
0:03:02.4]} 10. Be3 {[%clk 0:03:01.2]} 10... Nxd5 {[%clk 0:02:56.2]} 11. Bxd4
{[%clk 0:02:56.9]} 11... Nf6 {[%clk 0:02:45.6]} 12. Be3 {[%clk 0:02:53.8]} 12...
Bb7 {[%clk 0:01:55.6]} 13. f3 {[%clk 0:02:31.6]} 13... Qa5+ {[%clk 0:01:43.5]}
14. Kf2 {[%clk 0:02:30.7]} 14... Be7 {[%clk 0:01:39.6]} 15. cxb5 {[%clk
0:02:25.4]} 15... d5 {[%clk 0:01:40.4]} 16. bxa6 {[%clk 0:02:16.6]} 16... Bc6
{[%clk 0:01:39.8]} 17. Rc1 {[%clk 0:01:56.1]} 17... d4 {[%clk 0:01:20.6]} 18.
Bd2 {[%clk 0:01:50.6]} 18... Qb6 {[%clk 0:01:08.2]} 19. Rxc6 {[%clk 0:01:44.3]}
19... Qxb2 {[%clk 0:01:00]} 20. Nc4 {[%clk 0:01:28]} 20... Qxa2 {[%clk
0:01:00.8]} 21. Nxe5 {[%clk 0:01:25]} 21... O-O {[%clk 0:00:59.8]} 22. Bc4
{[%clk 0:01:23]} 22... Qa3 {[%clk 0:00:51.2]} 23. Qb3 {[%clk 0:01:22.3]} 23...
Qxb3 {[%clk 0:00:44.4]} 24. Bxb3 {[%clk 0:01:23.1]} 24... Rfb8 {[%clk
0:00:45.2]} 25. Bxf7+ {[%clk 0:01:21.5]} 25... Kf8 {[%clk 0:00:45.3]} 26. Be6
{[%clk 0:01:17.5]} 26... Rb2 {[%clk 0:00:45.1]} 27. Nc4 {[%clk 0:01:18.1]} 27...
Rc2 {[%clk 0:00:43.6]} 28. Rc1 {[%clk 0:01:18.1]} 28... Ra2 {[%clk 0:00:42.4]}
29. Bc8 {[%clk 0:01:12.4]} 29... Bb4 {[%clk 0:00:41.8]} 30. Ke1 {[%clk
0:01:13.1]} 30... Be7 {[%clk 0:00:37.8]} 31. Bb7 {[%clk 0:01:11.9]} 31... Ra7
{[%clk 0:00:37.8]} 32. Ne5 {[%clk 0:01:05.8]} 32... Rb2 {[%clk 0:00:33.8]} 33.
Rc8+ {[%clk 0:01:05.5]} 33... Ne8 {[%clk 0:00:35]} 34. Nc6 {[%clk 0:00:37.5]}
34... Raxb7 {[%clk 0:00:28.2]} 35. axb7 {[%clk 0:00:39.4]} 35... Rxb7 {[%clk
0:00:29]} 36. Nxe7 {[%clk 0:00:40.8]} 36... Kxe7 {[%clk 0:00:29.7]} 37. R8c4
{[%clk 0:00:36.5]} 37... Rd7 {[%clk 0:00:30]} 38. Ra4 {[%clk 0:00:35.8]} 38...
Nf6 {[%clk 0:00:28.9]} 39. Bg5 {[%clk 0:00:36.7]} 39... Kf7 {[%clk 0:00:29]} 40.
Bxf6 {[%clk 0:00:37.5]} 40... gxf6 {[%clk 0:00:29.3]} 41. Kd2 {[%clk 0:00:39.4]}
41... Kg6 {[%clk 0:00:29.8]} 42. Rcc4 {[%clk 0:00:39.1]} 42... d3 {[%clk
0:00:30.5]} 43. Rd4 {[%clk 0:00:40]} 43... Rb7 {[%clk 0:00:31.5]} 44. Kxd3
{[%clk 0:00:40.8]} 44... Rb2 {[%clk 0:00:32.7]} 45. Rd8 {[%clk 0:00:40.3]} 45...
Kg7 {[%clk 0:00:29.6]} 46. Ra7+ {[%clk 0:00:41.1]} 46... Kh6 {[%clk 0:00:30.9]}
47. Rh8 {[%clk 0:00:41.8]} 47... f5 {[%clk 0:00:31.2]} 48. Rhxh7+ {[%clk
0:00:41.5]} 48... Kg6 {[%clk 0:00:31.7]} 49. e5 {[%clk 0:00:43.1]} 49... f4
{[%clk 0:00:31.8]} 50. Rhf7 {[%clk 0:00:40.3]} 50... Kg5 {[%clk 0:00:32.2]} 51.
Rf6 {[%clk 0:00:40.7]} 51... Rb3+ {[%clk 0:00:27.4]} 52. Ke4 {[%clk 0:00:39.9]}
52... Re3+ {[%clk 0:00:27.6]} 53. Kd4 {[%clk 0:00:40.5]} 53... Re2 {[%clk
0:00:28.8]} 54. Rg7+ {[%clk 0:00:39]} 54... Kh5 {[%clk 0:00:29.2]} 55. g4+
{[%clk 0:00:38.8]} 55... fxg3 {[%clk 0:00:28.6]} 56. hxg3 {[%clk 0:00:39.6]}
56... Re4+ {[%clk 0:00:27.5]} 57. Kd3 {[%clk 0:00:34]} 57... Rd4+ {[%clk
0:00:20.6]} 58. Ke3 {[%clk 0:00:30.6]} 58... Re4+ {[%clk 0:00:21.7]} 59. Kf2
{[%clk 0:00:12.6]} 59... Re2+ {[%clk 0:00:22]} 60. Kf1 {[%clk 0:00:13.8]} 60...
Re1+ {[%clk 0:00:22.3]} 61. Kg2 {[%clk 0:00:15.7]} 61... Re2+ {[%clk 0:00:23.3]}
62. Kg1 {[%clk 0:00:17.6]} 62... Rg2+ {[%clk 0:00:21.5]} 63. Kf1 {[%clk
0:00:18.1]} 63... Rf2+ {[%clk 0:00:22.7]} 64. Ke1 {[%clk 0:00:19.6]} 64... Re2+
{[%clk 0:00:24]} 65. Kd1 {[%clk 0:00:21.5]} 65... Rd2+ {[%clk 0:00:25.3]} 66.
Kc1 {[%clk 0:00:23.4]} 66... Rc2+ {[%clk 0:00:26.4]} 67. Kxc2 {[%clk 0:00:25.1]}
1/2-1/2

[Event "*** Titled Tuesday 3|2 Blitz (Late)"]
[Site "Chess.com"]
[Date "2016.11.01"]
[Round "3"]
[White "Genghis_K"]
[Black "GrigorGrigorov"]
[Result "1-0"]
[WhiteElo "2690"]
[BlackElo "2573"]
[TimeControl "180+2"]
[EndTime "17:39:44 PDT"]
[Termination "Genghis_K won by resignation"]

1. e4 {[%clk 0:02:59.8]} 1... g6 {[%clk 0:03:00.2]} 2. d4 {[%clk 0:03:00.6]}
2... Bg7 {[%clk 0:03:01.3]} 3. c4 {[%clk 0:02:58.3]} 3... d6 {[%clk 0:03:01.6]}
4. Nc3 {[%clk 0:02:59.9]} 4... Nd7 {[%clk 0:03:02.4]} 5. Nf3 {[%clk 0:03:00]}
5... e5 {[%clk 0:03:02.9]} 6. Be2 {[%clk 0:03:01.4]} 6... Ngf6 {[%clk
0:03:03.8]} 7. O-O {[%clk 0:03:02.9]} 7... O-O {[%clk 0:03:04.8]} 8. Re1 {[%clk
0:03:04]} 8... c6 {[%clk 0:03:04.7]} 9. Bf1 {[%clk 0:03:02.2]} 9... Qb6 {[%clk
0:03:04.4]} 10. dxe5 {[%clk 0:02:38.8]} 10... dxe5 {[%clk 0:03:04.7]} 11. h3
{[%clk 0:02:36.9]} 11... Rd8 {[%clk 0:02:39.9]} 12. Qc2 {[%clk 0:02:18.7]} 12...
Nh5 {[%clk 0:02:32.8]} 13. Be3 {[%clk 0:02:16.9]} 13... Qc7 {[%clk 0:02:33.9]}
14. b4 {[%clk 0:02:17.3]} 14... Nf4 {[%clk 0:02:33.7]} 15. c5 {[%clk 0:02:13.8]}
15... Ne6 {[%clk 0:02:34.2]} 16. Bc4 {[%clk 0:02:13.8]} 16... Nd4 {[%clk
0:01:56.5]} 17. Bxd4 {[%clk 0:01:09.9]} 17... exd4 {[%clk 0:01:58.4]} 18. Bxf7+
{[%clk 0:01:11.5]} 18... Kh8 {[%clk 0:01:39]} 19. Na4 {[%clk 0:00:38]} 19... d3
{[%clk 0:01:24.4]} 20. Qd2 {[%clk 0:00:33]} 20... Nxc5 {[%clk 0:01:18.1]} 21.
Nxc5 {[%clk 0:00:23.7]} 21... Bxa1 {[%clk 0:00:58.5]} 22. Bb3 {[%clk 0:00:24.4]}
22... Bf6 {[%clk 0:00:37.7]} 23. e5 {[%clk 0:00:25.4]} 23... Be7 {[%clk
0:00:38.5]} 24. Ng5 {[%clk 0:00:21.7]} 24... Bxg5 {[%clk 0:00:28.4]} 25. Qxg5
{[%clk 0:00:23.6]} 25... Bf5 {[%clk 0:00:28.9]} 26. g4 {[%clk 0:00:19.4]} 26...
d2 {[%clk 0:00:20.8]} 27. Rd1 {[%clk 0:00:20.6]} 27... b6 {[%clk 0:00:22]} 28.
gxf5 {[%clk 0:00:20.7]} 28... Qxe5 {[%clk 0:00:21.8]} 29. Ne6 {[%clk 0:00:18.5]}
29... Rd6 {[%clk 0:00:20.9]} 30. Rxd2 {[%clk 0:00:12.2]} 30... Rxd2 {[%clk
0:00:19.5]} 31. Qxd2 {[%clk 0:00:12.8]} 31... gxf5 {[%clk 0:00:21]} 32. Qd4
{[%clk 0:00:10.3]} 32... Qxd4 {[%clk 0:00:19.8]} 33. Nxd4 {[%clk 0:00:12.2]}
33... c5 {[%clk 0:00:19.1]} 34. bxc5 {[%clk 0:00:13.4]} 34... bxc5 {[%clk
0:00:20.6]} 35. Nxf5 {[%clk 0:00:15.1]} 35... Rd8 {[%clk 0:00:20.9]} 36. Ne3
{[%clk 0:00:16]} 36... Rd4 {[%clk 0:00:21.3]} 37. Kf1 {[%clk 0:00:15.7]} 37...
Rh4 {[%clk 0:00:20]} 38. Kg2 {[%clk 0:00:17.2]} 38... Rd4 {[%clk 0:00:19.8]} 39.
Kg3 {[%clk 0:00:18.5]} 39... h6 {[%clk 0:00:20.1]} 40. h4 {[%clk 0:00:19.5]}
40... Kh7 {[%clk 0:00:21]} 41. h5 {[%clk 0:00:20.3]} 41... Rd2 {[%clk
0:00:21.1]} 42. f3 {[%clk 0:00:20.5]} 42... Kg7 {[%clk 0:00:21.7]} 43. Nf5+
{[%clk 0:00:21.4]} 43... Kf6 {[%clk 0:00:22.2]} 44. Kf4 {[%clk 0:00:18.8]} 44...
Rh2 {[%clk 0:00:21.4]} 45. Nxh6 {[%clk 0:00:19.7]} 45... Rxh5 {[%clk 0:00:18.8]}
46. Ng4+ {[%clk 0:00:21.2]} 46... Ke7 {[%clk 0:00:19.3]} 47. Nf2 {[%clk
0:00:17.4]} 47... Rh2 {[%clk 0:00:18.1]} 48. Ne4 {[%clk 0:00:16.2]} 48... Rh5
{[%clk 0:00:17.2]} 49. Ng3 {[%clk 0:00:16.4]} 49... Rh4+ {[%clk 0:00:15.9]} 50.
Ke5 {[%clk 0:00:17.2]} 50... c4 {[%clk 0:00:16.8]} 51. Bc2 {[%clk 0:00:17]}
51... Rh2 {[%clk 0:00:17.8]} 52. Nf5+ {[%clk 0:00:15.3]} 52... Kd8 {[%clk
0:00:17.4]} 53. Ne3 {[%clk 0:00:16.5]} 53... c3 {[%clk 0:00:16.8]} 54. Kd4
{[%clk 0:00:17.9]} 54... Rf2 {[%clk 0:00:17.6]} 55. Be4 {[%clk 0:00:17.3]} 55...
Rxa2 {[%clk 0:00:17.1]} 56. Kxc3 {[%clk 0:00:18.6]} 56... a5 {[%clk 0:00:16.9]}
57. Nc2 {[%clk 0:00:17.2]} 57... Ra4 {[%clk 0:00:16.3]} 58. Kb3 {[%clk 0:00:16]}
58... Rxe4 {[%clk 0:00:11.3]} 59. fxe4 {[%clk 0:00:17.1]} 59... Ke7 {[%clk
0:00:13.2]} 60. Ne1 {[%clk 0:00:15.5]} 60... Kd6 {[%clk 0:00:13.3]} 61. Nd3
{[%clk 0:00:17]} 61... Kc6 {[%clk 0:00:14.2]} 62. Ka4 {[%clk 0:00:18.5]} 62...
Kd6 {[%clk 0:00:15]} 63. Kxa5 {[%clk 0:00:19.6]} 63... Ke6 {[%clk 0:00:16.1]}
64. Kb5 {[%clk 0:00:20.6]} 1-0

[Event "*** Titled Tuesday 3|2 Blitz (Late)"]
[Site "Chess.com"]
[Date "2016.11.01"]
[Round "3"]
[White "howitzer14"]
[Black "yurisolo"]
[Result "1-0"]
[WhiteElo "2773"]
[BlackElo "2532"]
[TimeControl "180+2"]
[EndTime "17:40:34 PDT"]
[Termination "howitzer14 won by resignation"]

1. e4 {[%clk 0:03:02]} 1... g6 {[%clk 0:03:01]} 2. d4 {[%clk 0:03:02.4]} 2...
Bg7 {[%clk 0:03:02.6]} 3. Nf3 {[%clk 0:03:04.1]} 3... d6 {[%clk 0:03:03.9]} 4.
Bc4 {[%clk 0:03:04.2]} 4... Nf6 {[%clk 0:03:05]} 5. Qe2 {[%clk 0:03:03.2]} 5...
O-O {[%clk 0:03:05.8]} 6. O-O {[%clk 0:03:04.8]} 6... Nc6 {[%clk 0:03:04.7]} 7.
h3 {[%clk 0:02:54]} 7... e5 {[%clk 0:03:04.9]} 8. dxe5 {[%clk 0:02:52.2]} 8...
Nxe5 {[%clk 0:03:06.8]} 9. Nxe5 {[%clk 0:02:50.4]} 9... dxe5 {[%clk 0:03:08.7]}
10. Nc3 {[%clk 0:02:52]} 10... c6 {[%clk 0:03:08.8]} 11. a4 {[%clk 0:02:50]}
11... a5 {[%clk 0:03:07]} 12. Be3 {[%clk 0:02:46.9]} 12... Qe7 {[%clk
0:03:05.2]} 13. Rfd1 {[%clk 0:02:36.8]} 13... Be6 {[%clk 0:03:04.5]} 14. Rd2
{[%clk 0:02:32.6]} 14... Bxc4 {[%clk 0:02:54.6]} 15. Qxc4 {[%clk 0:02:33.1]}
15... Qb4 {[%clk 0:02:56.2]} 16. Qd3 {[%clk 0:02:25]} 16... Rfe8 {[%clk
0:02:40.3]} 17. Rad1 {[%clk 0:02:18.7]} 17... h6 {[%clk 0:02:32.7]} 18. b3
{[%clk 0:02:16.6]} 18... Bf8 {[%clk 0:02:31.6]} 19. f3 {[%clk 0:02:05.2]} 19...
Kg7 {[%clk 0:02:31.9]} 20. Na2 {[%clk 0:01:43.2]} 20... Qa3 {[%clk 0:02:29.2]}
21. Nc3 {[%clk 0:01:38.7]} 21... Be7 {[%clk 0:02:27.5]} 22. Nb1 {[%clk
0:01:35.3]} 22... Qb4 {[%clk 0:02:22]} 23. Qc3 {[%clk 0:01:36.7]} 23... Qxc3
{[%clk 0:01:46.2]} 24. Nxc3 {[%clk 0:01:38.6]} 24... Red8 {[%clk 0:01:39.8]} 25.
Kf1 {[%clk 0:01:34.6]} 25... Rxd2 {[%clk 0:01:37.1]} 26. Rxd2 {[%clk 0:01:35.8]}
26... Rd8 {[%clk 0:01:35.7]} 27. Rxd8 {[%clk 0:01:27.9]} 27... Bxd8 {[%clk
0:01:37.6]} 28. Ke2 {[%clk 0:01:29.4]} 28... Nd7 {[%clk 0:01:36.1]} 29. Kd3
{[%clk 0:01:26.5]} 29... h5 {[%clk 0:01:31.2]} 30. Nb1 {[%clk 0:01:19.5]} 30...
Kf6 {[%clk 0:01:27.3]} 31. Nd2 {[%clk 0:01:18.8]} 31... Ke6 {[%clk 0:01:28.6]}
32. Nc4 {[%clk 0:01:16.1]} 32... Bc7 {[%clk 0:01:23.2]} 33. Bd2 {[%clk
0:01:11.6]} 33... b6 {[%clk 0:01:16.9]} 34. Be3 {[%clk 0:01:10.3]} 34... f5
{[%clk 0:01:10.8]} 35. Bf2 {[%clk 0:01:06.8]} 35... b5 {[%clk 0:01:03.8]} 36.
axb5 {[%clk 0:01:08.7]} 36... cxb5 {[%clk 0:01:04.9]} 37. Na3 {[%clk 0:01:10.6]}
37... b4 {[%clk 0:01:01.8]} 38. Nc4 {[%clk 0:01:10.7]} 38... Bd8 {[%clk
0:00:45.4]} 39. Be3 {[%clk 0:01:09.1]} 39... Bc7 {[%clk 0:00:46.3]} 40. Bf2
{[%clk 0:01:06.5]} 40... Bd8 {[%clk 0:00:47.5]} 41. Be3 {[%clk 0:01:05.8]} 41...
Bc7 {[%clk 0:00:48.7]} 42. Ba7 {[%clk 0:01:07.5]} 42... Bd8 {[%clk 0:00:46.8]}
43. Ke2 {[%clk 0:00:58]} 43... Nf6 {[%clk 0:00:39.9]} 44. Ke3 {[%clk 0:00:58.1]}
44... Nd7 {[%clk 0:00:40.7]} 45. Ke2 {[%clk 0:00:44.6]} 45... Nf6 {[%clk
0:00:40.7]} 46. Ke3 {[%clk 0:00:46.3]} 46... Nd7 {[%clk 0:00:41.8]} 47. exf5+
{[%clk 0:00:47.9]} 47... gxf5 {[%clk 0:00:42.5]} 48. g4 {[%clk 0:00:49.8]} 48...
fxg4 {[%clk 0:00:34.1]} 49. fxg4 {[%clk 0:00:47.4]} 49... hxg4 {[%clk
0:00:34.8]} 50. hxg4 {[%clk 0:00:49.3]} 50... Kd5 {[%clk 0:00:36]} 51. Nd2
{[%clk 0:00:46.8]} 51... Bg5+ {[%clk 0:00:32.9]} 52. Ke2 {[%clk 0:00:39.8]}
52... Bxd2 {[%clk 0:00:27.9]} 53. Kxd2 {[%clk 0:00:40.5]} 53... Ke4 {[%clk
0:00:29.8]} 54. Be3 {[%clk 0:00:35.3]} 54... Nf8 {[%clk 0:00:28.2]} 55. Bb6
{[%clk 0:00:32.9]} 55... Kf3 {[%clk 0:00:21.3]} 56. g5 {[%clk 0:00:25]} 56... e4
{[%clk 0:00:21.5]} 57. Bxa5 {[%clk 0:00:24.4]} 57... e3+ {[%clk 0:00:22.4]} 58.
Kd3 {[%clk 0:00:19.3]} 58... Ne6 {[%clk 0:00:21.1]} 59. Bxb4 {[%clk 0:00:17]}
59... Nxg5 {[%clk 0:00:21.9]} 60. c4 {[%clk 0:00:14.3]} 60... e2 {[%clk
0:00:19.3]} 61. c5 {[%clk 0:00:13]} 61... Ne4 {[%clk 0:00:13.1]} 62. c6 {[%clk
0:00:12.3]} 62... Nc5+ {[%clk 0:00:14.3]} 63. Kc4 {[%clk 0:00:10.9]} 63... Ne6
{[%clk 0:00:12.4]} 64. Be1 {[%clk 0:00:11.1]} 64... Kg2 {[%clk 0:00:11.5]} 65.
b4 {[%clk 0:00:11.6]} 65... Kf1 {[%clk 0:00:12.7]} 66. Bc3 {[%clk 0:00:13.1]}
66... Kf2 {[%clk 0:00:06.9]} 67. b5 {[%clk 0:00:14.5]} 67... Ke3 {[%clk
0:00:08.1]} 68. b6 {[%clk 0:00:15.7]} 68... Nc7 {[%clk 0:00:02.3]} 69. bxc7
{[%clk 0:00:16.3]} 1-0